[Event "Titled Tuesday Blitz March 15 Late 2022"]
[White "Miszler, Levente"]
[Black "Cagara, Paulina"]
[WhiteFideId "763276"]
[BlackFideId "1124870"]
[WhiteElo "1966"]
[BlackElo "1780"]
[Result "1-0"]
[Round "05"]
[TimeControl "180+1"]
[Date "2022.03.16"]
[WhiteClock "0:00:20"]
[BlackClock "0:00:23"]

1. Nf3 {[%clk 0:02:47]}  f5 {[%clk 0:02:58]} 2. d4 {[%clk 0:02:44]}  Nf6 {[%clk 0:02:58]} 3. Nc3 {[%clk 0:02:35]}  d5 {[%clk 0:02:55]} 4. Bf4 {[%clk 0:02:27]}  g6 {[%clk 0:02:53]} 5. Ne5 {[%clk 0:02:27]}  Bg7 {[%clk 0:02:51]} 6. Qd2 {[%clk 0:02:26]}  Nc6 {[%clk 0:02:46]} 7. h4 {[%clk 0:02:22]}  Nxe5 {[%clk 0:02:36]} 8. Bxe5 {[%clk 0:02:20]}  Be6 {[%clk 0:02:35]} 9. O-O-O {[%clk 0:02:16]}  Qd7 {[%clk 0:02:35]} 10. e3 {[%clk 0:02:13]}  c6 {[%clk 0:02:34]} 11. f3 {[%clk 0:02:04]}  Nh5 {[%clk 0:02:30]} 12. Bxg7 {[%clk 0:01:53]}  Nxg7 {[%clk 0:02:31]} 13. Bd3 {[%clk 0:01:50]}  Bf7 {[%clk 0:02:19]} 14. Rde1 {[%clk 0:01:49]}  O-O-O {[%clk 0:02:18]} 15. e4 {[%clk 0:01:45]}  dxe4 {[%clk 0:02:13]} 16. fxe4 {[%clk 0:01:46]}  Qxd4 {[%clk 0:02:11]} 17. exf5 {[%clk 0:01:46]}  Nxf5 {[%clk 0:02:08]} 18. Bxf5+ {[%clk 0:01:33]}  gxf5 {[%clk 0:02:07]} 19. Qxd4 {[%clk 0:01:33]}  Rxd4 {[%clk 0:02:07]} 20. Rxe7 {[%clk 0:01:34]}  Bc4 {[%clk 0:01:58]} 21. b3 {[%clk 0:01:22]}  Ba6 {[%clk 0:01:50]} 22. Rf7 {[%clk 0:01:22]}  Rg4 {[%clk 0:01:39]} 23. Rxf5 {[%clk 0:01:17]}  Rxg2 {[%clk 0:01:38]} 24. Re1 {[%clk 0:01:17]}  Rhg8 {[%clk 0:01:30]} 25. Re7 {[%clk 0:01:15]}  R2g7 {[%clk 0:01:26]} 26. Rf8+ {[%clk 0:01:08]}  Rxf8 {[%clk 0:01:24]} 27. Rxg7 {[%clk 0:01:08]}  h6 {[%clk 0:01:20]} 28. Ne4 {[%clk 0:01:02]}  Rf4 {[%clk 0:01:11]} 29. Nd6+ {[%clk 0:01:02]}  Kd8 {[%clk 0:01:08]} 30. h5 {[%clk 0:00:58]}  Rd4 {[%clk 0:01:00]} 31. Nxb7+ {[%clk 0:00:56]}  Ke8 {[%clk 0:00:59]} 32. Nc5 {[%clk 0:00:55]}  Bf1 {[%clk 0:00:57]} 33. Rxa7 {[%clk 0:00:53]}  Be2 {[%clk 0:00:54]} 34. Rh7 {[%clk 0:00:42]}  Rd6 {[%clk 0:00:48]} 35. a4 {[%clk 0:00:37]}  Bxh5 {[%clk 0:00:48]} 36. a5 {[%clk 0:00:37]}  Bg6 {[%clk 0:00:48]} 37. Rxh6 {[%clk 0:00:35]}  Ke7 {[%clk 0:00:42]} 38. a6 {[%clk 0:00:33]}  Rd5 {[%clk 0:00:36]} 39. a7 {[%clk 0:00:24]}  Rxc5 {[%clk 0:00:34]} 40. a8=Q {[%clk 0:00:24]}  Rxc2+ {[%clk 0:00:34]} 41. Kd1 {[%clk 0:00:24]}  Rg2 {[%clk 0:00:32]} 42. Qxc6 {[%clk 0:00:22]}  Bc2+ {[%clk 0:00:22]} 43. Qxc2 {[%clk 0:00:20]}  Rg1+ {[%clk 0:00:22]} 44. Kd2 {[%clk 0:00:20]}  Rg2+ {[%clk 0:00:23]} 45. Kc3 {[%clk 0:00:20]} 1-0


[Site "https://www.chess.com"]

[Event "Titled Tuesday Blitz March 15 Late 2022"]
[White "Moroni, Luca Jr"]
[Black "Barp, Alberto"]
[WhiteFideId "865834"]
[BlackFideId "872555"]
[WhiteElo "2573"]
[BlackElo "2229"]
[Result "1/2-1/2"]
[Round "05"]
[TimeControl "180+1"]
[Date "2022.03.15"]
[WhiteClock "0:00:33"]
[BlackClock "0:00:14"]

1. c4 {[%clk 0:02:58]}  e6 {[%clk 0:01:52]} 2. Nf3 {[%clk 0:02:57]}  d5 {[%clk 0:01:50]} 3. e3 {[%clk 0:02:57]}  Nf6 {[%clk 0:01:50]} 4. b3 {[%clk 0:02:57]}  c6 {[%clk 0:01:50]} 5. Bb2 {[%clk 0:02:57]}  Nbd7 {[%clk 0:01:50]} 6. Qc2 {[%clk 0:02:56]}  Bd6 {[%clk 0:01:50]} 7. Nc3 {[%clk 0:02:56]}  a6 {[%clk 0:01:37]} 8. Be2 {[%clk 0:02:53]}  e5 {[%clk 0:01:36]} 9. O-O-O {[%clk 0:02:30]}  b5 {[%clk 0:01:32]} 10. cxd5 {[%clk 0:02:26]}  cxd5 {[%clk 0:01:33]} 11. Kb1 {[%clk 0:02:26]}  Bb7 {[%clk 0:01:32]} 12. Rc1 {[%clk 0:02:26]}  Rc8 {[%clk 0:01:31]} 13. Qf5 {[%clk 0:02:26]}  Qe7 {[%clk 0:01:27]} 14. d4 {[%clk 0:02:15]}  e4 {[%clk 0:01:24]} 15. Ne5 {[%clk 0:02:15]}  Qe6 {[%clk 0:01:09]} 16. Qxe6+ {[%clk 0:02:06]}  fxe6 {[%clk 0:01:08]} 17. Nxd7 {[%clk 0:02:06]}  Kxd7 {[%clk 0:01:07]} 18. f3 {[%clk 0:02:01]}  Rhf8 {[%clk 0:00:56]} 19. fxe4 {[%clk 0:01:59]}  Nxe4 {[%clk 0:00:52]} 20. Nxe4 {[%clk 0:01:58]}  Rxc1+ {[%clk 0:00:52]} 21. Kxc1 {[%clk 0:01:48]}  dxe4 {[%clk 0:00:53]} 22. Kd1 {[%clk 0:01:48]}  Rf2 {[%clk 0:00:48]} 23. g3 {[%clk 0:01:48]}  Bb4 {[%clk 0:00:44]} 24. Bc1 {[%clk 0:01:47]}  Kd6 {[%clk 0:00:27]} 25. Bd2 {[%clk 0:01:46]}  Bxd2 {[%clk 0:00:26]} 26. Kxd2 {[%clk 0:01:47]}  e5 {[%clk 0:00:26]} 27. dxe5+ {[%clk 0:01:41]}  Kxe5 {[%clk 0:00:27]} 28. Ke1 {[%clk 0:01:38]}  Rf7 {[%clk 0:00:27]} 29. Rf1 {[%clk 0:01:28]}  Rxf1+ {[%clk 0:00:25]} 30. Bxf1 {[%clk 0:01:29]}  b4 {[%clk 0:00:24]} 31. Kd2 {[%clk 0:01:27]}  a5 {[%clk 0:00:24]} 32. Kc2 {[%clk 0:01:27]}  Bd5 {[%clk 0:00:23]} 33. Kd2 {[%clk 0:01:26]}  Kd6 {[%clk 0:00:23]} 34. Bb5 {[%clk 0:01:25]}  Ke5 {[%clk 0:00:23]} 35. Be8 {[%clk 0:01:25]}  Kf5 {[%clk 0:00:22]} 36. Ke2 {[%clk 0:01:25]}  g5 {[%clk 0:00:21]} 37. Bd7+ {[%clk 0:01:23]}  Ke5 {[%clk 0:00:21]} 38. Kf2 {[%clk 0:01:22]}  h6 {[%clk 0:00:22]} 39. h4 {[%clk 0:01:22]}  Be6 {[%clk 0:00:21]} 40. Ba4 {[%clk 0:01:10]}  Bg4 {[%clk 0:00:21]} 41. hxg5 {[%clk 0:01:07]}  hxg5 {[%clk 0:00:22]} 42. Ke1 {[%clk 0:01:07]}  Bf3 {[%clk 0:00:22]} 43. Bb5 {[%clk 0:01:06]}  Kf5 {[%clk 0:00:22]} 44. Bd7+ {[%clk 0:01:01]}  Kg6 {[%clk 0:00:22]} 45. Kd2 {[%clk 0:01:00]}  Kh5 {[%clk 0:00:22]} 46. Bf5 {[%clk 0:00:58]}  Kh6 {[%clk 0:00:20]} 47. Kc2 {[%clk 0:00:54]}  Kg7 {[%clk 0:00:20]} 48. a3 {[%clk 0:00:49]}  Kf6 {[%clk 0:00:19]} 49. Bc8 {[%clk 0:00:49]}  Ke5 {[%clk 0:00:19]} 50. axb4 {[%clk 0:00:49]}  axb4 {[%clk 0:00:20]} 51. Kd2 {[%clk 0:00:49]}  Bh5 {[%clk 0:00:20]} 52. Ba6 {[%clk 0:00:48]}  Bf7 {[%clk 0:00:20]} 53. Kc2 {[%clk 0:00:46]}  Bd5 {[%clk 0:00:19]} 54. Bf1 {[%clk 0:00:45]}  Be6 {[%clk 0:00:18]} 55. Kb2 {[%clk 0:00:42]}  Bg4 {[%clk 0:00:18]} 56. Kc2 {[%clk 0:00:42]}  Kf5 {[%clk 0:00:18]} 57. Kd2 {[%clk 0:00:41]}  Ke5 {[%clk 0:00:18]} 58. Bc4 {[%clk 0:00:39]}  Bf3 {[%clk 0:00:17]} 59. Ke1 {[%clk 0:00:38]}  Kf5 {[%clk 0:00:15]} 60. Kf2 {[%clk 0:00:38]}  Bd1 {[%clk 0:00:15]} 61. Kg2 {[%clk 0:00:38]}  Bg4 {[%clk 0:00:14]} 62. Bd5 {[%clk 0:00:35]}  Ke5 {[%clk 0:00:14]} 63. Bg8 {[%clk 0:00:34]}  Bd7 {[%clk 0:00:13]} 64. Bf7 {[%clk 0:00:34]}  g4 {[%clk 0:00:13]} 65. Kf2 {[%clk 0:00:33]}  Be6 {[%clk 0:00:13]} 66. Bxe6 {[%clk 0:00:33]}  Kxe6 {[%clk 0:00:14]} 1/2-1/2


[Site "https://www.chess.com"]

[Event "Titled Tuesday Blitz March 15 Late 2022"]
[White "Morris-Suzuki, Sophie"]
[Black "Mogranzini, Roberto"]
[WhiteFideId "30922615"]
[BlackFideId "810894"]
[WhiteElo "2490"]
[BlackElo "2469"]
[Result "0-1"]
[Round "05"]
[TimeControl "180+1"]
[Date "2022.03.16"]
[WhiteClock "0:00:04"]
[BlackClock "0:00:22"]

1. d4 {[%clk 0:03:00]}  Nf6 {[%clk 0:02:59]} 2. c4 {[%clk 0:03:01]}  g6 {[%clk 0:02:59]} 3. Nc3 {[%clk 0:03:01]}  Bg7 {[%clk 0:03:00]} 4. Nf3 {[%clk 0:03:02]}  d6 {[%clk 0:03:00]} 5. g3 {[%clk 0:03:03]}  O-O {[%clk 0:03:01]} 6. Bg2 {[%clk 0:03:03]}  Nc6 {[%clk 0:03:01]} 7. O-O {[%clk 0:03:04]}  Bf5 {[%clk 0:03:02]} 8. Nh4 {[%clk 0:03:04]}  Bd7 {[%clk 0:03:01]} 9. e4 {[%clk 0:03:04]}  e5 {[%clk 0:02:48]} 10. d5 {[%clk 0:02:39]}  Nd4 {[%clk 0:02:48]} 11. Nf3 {[%clk 0:02:29]}  Bg4 {[%clk 0:02:46]} 12. Qd3 {[%clk 0:02:25]}  Bxf3 {[%clk 0:02:38]} 13. Bxf3 {[%clk 0:02:25]}  c5 {[%clk 0:02:36]} 14. Bg2 {[%clk 0:02:16]}  Nd7 {[%clk 0:02:10]} 15. f4 {[%clk 0:01:58]}  exf4 {[%clk 0:02:07]} 16. gxf4 {[%clk 0:01:58]}  Qh4 {[%clk 0:01:50]} 17. Be3 {[%clk 0:01:53]}  Rae8 {[%clk 0:01:44]} 18. Kh1 {[%clk 0:01:24]}  a6 {[%clk 0:01:28]} 19. Bf2 {[%clk 0:01:23]}  Qd8 {[%clk 0:01:25]} 20. Rab1 {[%clk 0:01:17]}  f5 {[%clk 0:01:22]} 21. b4 {[%clk 0:01:03]}  b6 {[%clk 0:01:00]} 22. Bg1 {[%clk 0:00:55]}  Nf6 {[%clk 0:00:53]} 23. bxc5 {[%clk 0:00:46]}  bxc5 {[%clk 0:00:54]} 24. Rbe1 {[%clk 0:00:39]}  fxe4 {[%clk 0:00:53]} 25. Nxe4 {[%clk 0:00:39]}  Nxe4 {[%clk 0:00:53]} 26. Bxe4 {[%clk 0:00:39]}  Qh4 {[%clk 0:00:49]} 27. Qg3 {[%clk 0:00:15]}  Qh5 {[%clk 0:00:41]} 28. Bxd4 {[%clk 0:00:12]}  Bxd4 {[%clk 0:00:39]} 29. f5 {[%clk 0:00:11]}  Be5 {[%clk 0:00:36]} 30. Qg2 {[%clk 0:00:11]}  g5 {[%clk 0:00:34]} 31. Bf3 {[%clk 0:00:08]}  Qh4 {[%clk 0:00:30]} 32. Rg1 {[%clk 0:00:06]}  h6 {[%clk 0:00:30]} 33. Bg4 {[%clk 0:00:06]}  Bd4 {[%clk 0:00:27]} 34. Rxe8 {[%clk 0:00:04]}  Rxe8 {[%clk 0:00:27]} 35. Rf1 {[%clk 0:00:05]}  Bf6 {[%clk 0:00:25]} 36. Bf3 {[%clk 0:00:04]}  Re3 {[%clk 0:00:25]} 37. Qf2 {[%clk 0:00:04]}  Qf4 {[%clk 0:00:23]} 38. Bg2 {[%clk 0:00:04]}  Qxf2 {[%clk 0:00:23]} 39. Rxf2 {[%clk 0:00:05]}  Re1+ {[%clk 0:00:21]} 40. Rf1 {[%clk 0:00:05]}  Re2 {[%clk 0:00:22]} 41. a4 {[%clk 0:00:04]}  Be5 {[%clk 0:00:22]} 42. Kg1 {[%clk 0:00:04]}  Kg7 {[%clk 0:00:21]} 43. Kh1 {[%clk 0:00:03]}  Kf6 {[%clk 0:00:21]} 44. h3 {[%clk 0:00:03]}  h5 {[%clk 0:00:20]} 45. Bf3 {[%clk 0:00:03]}  Re3 {[%clk 0:00:20]} 46. Kg2 {[%clk 0:00:03]}  g4 {[%clk 0:00:20]} 47. hxg4 {[%clk 0:00:03]}  hxg4 {[%clk 0:00:21]} 48. Bd1 {[%clk 0:00:03]}  Rg3+ {[%clk 0:00:20]} 49. Kf2 {[%clk 0:00:03]}  Kg5 {[%clk 0:00:20]} 50. Rg1 {[%clk 0:00:03]}  Rxg1 {[%clk 0:00:18]} 51. Kxg1 {[%clk 0:00:04]}  Kxf5 {[%clk 0:00:18]} 52. Kg2 {[%clk 0:00:05]}  g3 {[%clk 0:00:18]} 53. Kf3 {[%clk 0:00:05]}  a5 {[%clk 0:00:18]} 54. Bc2+ {[%clk 0:00:05]}  Kg5 {[%clk 0:00:18]} 55. Be4 {[%clk 0:00:06]}  Kh4 {[%clk 0:00:18]} 56. Kg2 {[%clk 0:00:06]}  Kg4 {[%clk 0:00:19]} 57. Bd3 {[%clk 0:00:06]}  Kf4 {[%clk 0:00:19]} 58. Bf1 {[%clk 0:00:06]}  Ke3 {[%clk 0:00:19]} 59. Kh3 {[%clk 0:00:06]}  Kd4 {[%clk 0:00:20]} 60. Kg2 {[%clk 0:00:05]}  Kc3 {[%clk 0:00:20]} 61. Kf3 {[%clk 0:00:04]}  Kb3 {[%clk 0:00:20]} 62. Ke4 {[%clk 0:00:04]}  Kxa4 {[%clk 0:00:21]} 63. Kf5 {[%clk 0:00:04]}  Kb3 {[%clk 0:00:21]} 64. Ke4 {[%clk 0:00:04]}  a4 {[%clk 0:00:22]} 65. Kf5 {[%clk 0:00:04]}  a3 {[%clk 0:00:22]} 0-1


[Site "https://www.chess.com"]

[Event "Titled Tuesday Blitz March 15 Late 2022"]
[White "Najer, Evgeniy"]
[Black "Levitskiy, Andrey"]
[WhiteFideId "4118987"]
[BlackFideId "14132885"]
[WhiteElo "2562"]
[BlackElo "2301"]
[Result "1-0"]
[Round "05"]
[TimeControl "180+1"]
[Date "2022.03.16"]
[WhiteClock "0:00:31"]
[BlackClock "0:00:01"]

1. e4 {[%clk 0:02:42]}  c5 {[%clk 0:02:59]} 2. Nc3 {[%clk 0:02:37]}  Nc6 {[%clk 0:02:59]} 3. Bb5 {[%clk 0:02:37]}  Nd4 {[%clk 0:02:59]} 4. Bc4 {[%clk 0:02:37]}  g6 {[%clk 0:02:50]} 5. Nf3 {[%clk 0:02:36]}  Bg7 {[%clk 0:02:51]} 6. Nxd4 {[%clk 0:02:36]}  cxd4 {[%clk 0:02:43]} 7. Qf3 {[%clk 0:02:36]}  e6 {[%clk 0:02:08]} 8. Nb5 {[%clk 0:02:35]}  d6 {[%clk 0:01:54]} 9. Qg3 {[%clk 0:02:34]}  e5 {[%clk 0:01:39]} 10. Qa3 {[%clk 0:02:28]}  Bf8 {[%clk 0:01:17]} 11. O-O {[%clk 0:02:01]}  Be6 {[%clk 0:01:17]} 12. Bxe6 {[%clk 0:01:43]}  fxe6 {[%clk 0:01:18]} 13. Qa4 {[%clk 0:01:39]}  Kf7 {[%clk 0:00:59]} 14. f4 {[%clk 0:01:39]}  Kg7 {[%clk 0:00:56]} 15. Qc4 {[%clk 0:01:23]}  d5 {[%clk 0:00:45]} 16. Qc7+ {[%clk 0:01:22]}  Qxc7 {[%clk 0:00:35]} 17. Nxc7 {[%clk 0:01:22]}  Rc8 {[%clk 0:00:27]} 18. Nxe6+ {[%clk 0:01:21]}  Kf7 {[%clk 0:00:18]} 19. exd5 {[%clk 0:01:15]}  e4 {[%clk 0:00:11]} 20. c3 {[%clk 0:01:01]}  Nf6 {[%clk 0:00:07]} 21. Nxd4 {[%clk 0:00:49]}  Nxd5 {[%clk 0:00:06]} 22. d3 {[%clk 0:00:45]}  exd3 {[%clk 0:00:02]} 23. Rd1 {[%clk 0:00:45]}  Bc5 {[%clk 0:00:02]} 24. Rxd3 {[%clk 0:00:44]}  Kg7 {[%clk 0:00:02]} 25. Bd2 {[%clk 0:00:38]}  Rhe8 {[%clk 0:00:02]} 26. Kf1 {[%clk 0:00:34]}  Re7 {[%clk 0:00:01]} 27. Re1 {[%clk 0:00:31]} 1-0


[Site "https://www.chess.com"]

[Event "Titled Tuesday Blitz March 15 Late 2022"]
[White "Narayanan.S.L"]
[Black "Deac, Bogdan-Daniel"]
[WhiteFideId "5058422"]
[BlackFideId "1226380"]
[WhiteElo "2494"]
[BlackElo "2646"]
[Result "1/2-1/2"]
[Round "05"]
[TimeControl "180+1"]
[Date "2022.03.15"]
[WhiteClock "0:00:15"]
[BlackClock "0:00:10"]

1. d4 {[%clk 0:02:53]}  Nf6 {[%clk 0:02:59]} 2. Nf3 {[%clk 0:02:53]}  d5 {[%clk 0:02:59]} 3. Bf4 {[%clk 0:02:52]}  c5 {[%clk 0:02:59]} 4. e3 {[%clk 0:02:53]}  Nc6 {[%clk 0:03:00]} 5. Nbd2 {[%clk 0:02:53]}  Nh5 {[%clk 0:03:00]} 6. Be5 {[%clk 0:02:50]}  e6 {[%clk 0:03:00]} 7. c4 {[%clk 0:02:50]}  cxd4 {[%clk 0:02:57]} 8. Bxd4 {[%clk 0:02:49]}  Nxd4 {[%clk 0:02:56]} 9. Nxd4 {[%clk 0:02:49]}  Nf6 {[%clk 0:02:56]} 10. cxd5 {[%clk 0:02:48]}  Qxd5 {[%clk 0:02:46]} 11. Bb5+ {[%clk 0:02:48]}  Bd7 {[%clk 0:02:46]} 12. Bxd7+ {[%clk 0:02:48]}  Qxd7 {[%clk 0:02:47]} 13. O-O {[%clk 0:02:47]}  Bc5 {[%clk 0:02:45]} 14. N4b3 {[%clk 0:02:44]}  Be7 {[%clk 0:02:43]} 15. Nc4 {[%clk 0:02:43]}  Rd8 {[%clk 0:02:42]} 16. Qxd7+ {[%clk 0:02:41]}  Rxd7 {[%clk 0:02:43]} 17. Rac1 {[%clk 0:02:41]}  O-O {[%clk 0:02:36]} 18. Ne5 {[%clk 0:02:39]}  Rd5 {[%clk 0:02:35]} 19. Nf3 {[%clk 0:02:31]}  Rfd8 {[%clk 0:02:13]} 20. Rc7 {[%clk 0:02:26]}  R8d7 {[%clk 0:02:09]} 21. Rxd7 {[%clk 0:02:26]}  Rxd7 {[%clk 0:02:03]} 22. Rc1 {[%clk 0:02:27]}  Kf8 {[%clk 0:01:42]} 23. Kf1 {[%clk 0:02:22]}  Bd6 {[%clk 0:01:29]} 24. Na5 {[%clk 0:01:42]}  Bb4 {[%clk 0:01:08]} 25. Rc8+ {[%clk 0:01:37]}  Ke7 {[%clk 0:01:08]} 26. Nc4 {[%clk 0:01:37]}  Rd8 {[%clk 0:00:58]} 27. Rc7+ {[%clk 0:01:36]}  Rd7 {[%clk 0:00:58]} 28. Rc8 {[%clk 0:01:37]}  Rd8 {[%clk 0:00:58]} 29. Rxd8 {[%clk 0:01:31]}  Kxd8 {[%clk 0:00:58]} 30. Nfe5 {[%clk 0:01:31]}  Ke8 {[%clk 0:00:48]} 31. a3 {[%clk 0:01:30]}  Be7 {[%clk 0:00:38]} 32. Na5 {[%clk 0:01:25]}  b5 {[%clk 0:00:31]} 33. Nac6 {[%clk 0:01:23]}  Bc5 {[%clk 0:00:29]} 34. Ke2 {[%clk 0:01:16]}  Nd5 {[%clk 0:00:27]} 35. Nd3 {[%clk 0:00:56]}  Bb6 {[%clk 0:00:27]} 36. e4 {[%clk 0:00:56]}  Nc7 {[%clk 0:00:22]} 37. f3 {[%clk 0:00:53]}  f6 {[%clk 0:00:22]} 38. b3 {[%clk 0:00:34]}  Kd7 {[%clk 0:00:20]} 39. Ncb4 {[%clk 0:00:32]}  a5 {[%clk 0:00:20]} 40. Nc2 {[%clk 0:00:32]}  e5 {[%clk 0:00:20]} 41. a4 {[%clk 0:00:25]}  Kc6 {[%clk 0:00:18]} 42. axb5+ {[%clk 0:00:23]}  Nxb5 {[%clk 0:00:17]} 43. Nb2 {[%clk 0:00:22]}  Nd4+ {[%clk 0:00:09]} 44. Nxd4+ {[%clk 0:00:22]}  Bxd4 {[%clk 0:00:10]} 45. Nd3 {[%clk 0:00:20]}  Kb5 {[%clk 0:00:10]} 46. Kd2 {[%clk 0:00:15]}  a4 {[%clk 0:00:09]} 47. bxa4+ {[%clk 0:00:15]}  Kxa4 {[%clk 0:00:10]} 1/2-1/2


[Site "https://www.chess.com"]

[Event "Titled Tuesday Blitz March 15 Late 2022"]
[White "Oro, Luis"]
[Black "Rustemov, Alexander"]
[WhiteFideId "104094"]
[BlackFideId "4119002"]
[WhiteElo "2280"]
[BlackElo "2740"]
[Result "0-1"]
[Round "05"]
[TimeControl "180+1"]
[Date "2022.03.16"]
[WhiteClock "0:00:22"]
[BlackClock "0:01:17"]

1. e4 {[%clk 0:03:00]}  e6 {[%clk 0:02:58]} 2. d4 {[%clk 0:03:00]}  d5 {[%clk 0:02:59]} 3. Nd2 {[%clk 0:02:58]}  b6 {[%clk 0:02:56]} 4. Bd3 {[%clk 0:02:52]}  Nf6 {[%clk 0:02:55]} 5. e5 {[%clk 0:02:51]}  Nfd7 {[%clk 0:02:54]} 6. Ngf3 {[%clk 0:02:51]}  Ba6 {[%clk 0:02:53]} 7. Bxa6 {[%clk 0:02:49]}  Nxa6 {[%clk 0:02:54]} 8. c3 {[%clk 0:02:49]}  c5 {[%clk 0:02:53]} 9. Qe2 {[%clk 0:02:47]}  Nab8 {[%clk 0:02:51]} 10. O-O {[%clk 0:02:45]}  Nc6 {[%clk 0:02:50]} 11. Rd1 {[%clk 0:02:43]}  Be7 {[%clk 0:02:42]} 12. Nf1 {[%clk 0:02:40]}  O-O {[%clk 0:02:29]} 13. Ng3 {[%clk 0:02:36]}  Rc8 {[%clk 0:02:28]} 14. Be3 {[%clk 0:02:32]}  Qc7 {[%clk 0:02:17]} 15. Rac1 {[%clk 0:02:28]}  cxd4 {[%clk 0:02:03]} 16. cxd4 {[%clk 0:02:26]}  Qb7 {[%clk 0:02:04]} 17. a3 {[%clk 0:02:24]}  Na5 {[%clk 0:02:03]} 18. Nd2 {[%clk 0:02:20]}  Rxc1 {[%clk 0:02:01]} 19. Rxc1 {[%clk 0:02:20]}  Rc8 {[%clk 0:02:02]} 20. Qd1 {[%clk 0:02:17]}  Nc4 {[%clk 0:02:01]} 21. Nxc4 {[%clk 0:02:16]}  dxc4 {[%clk 0:02:00]} 22. Ne2 {[%clk 0:02:11]}  b5 {[%clk 0:01:59]} 23. Qd2 {[%clk 0:01:39]}  Nb6 {[%clk 0:01:58]} 24. Bg5 {[%clk 0:01:34]}  Bf8 {[%clk 0:01:55]} 25. Nf4 {[%clk 0:01:30]}  Nd5 {[%clk 0:01:54]} 26. Nh5 {[%clk 0:01:26]}  h6 {[%clk 0:01:47]} 27. Bh4 {[%clk 0:01:14]}  b4 {[%clk 0:01:47]} 28. axb4 {[%clk 0:01:07]}  Qxb4 {[%clk 0:01:47]} 29. Qxb4 {[%clk 0:00:58]}  Bxb4 {[%clk 0:01:47]} 30. Ng3 {[%clk 0:00:52]}  g5 {[%clk 0:01:45]} 31. Bxg5 {[%clk 0:00:52]}  hxg5 {[%clk 0:01:45]} 32. Ne4 {[%clk 0:00:52]}  c3 {[%clk 0:01:39]} 33. bxc3 {[%clk 0:00:47]}  Nxc3 {[%clk 0:01:40]} 34. Nf6+ {[%clk 0:00:44]}  Kg7 {[%clk 0:01:39]} 35. Kf1 {[%clk 0:00:44]}  Rd8 {[%clk 0:01:36]} 36. d5 {[%clk 0:00:29]}  Nxd5 {[%clk 0:01:35]} 37. Ne4 {[%clk 0:00:29]}  Kg6 {[%clk 0:01:30]} 38. g3 {[%clk 0:00:29]}  Kf5 {[%clk 0:01:27]} 39. f3 {[%clk 0:00:29]}  a5 {[%clk 0:01:22]} 40. Ke2 {[%clk 0:00:29]}  a4 {[%clk 0:01:21]} 41. Ra1 {[%clk 0:00:27]}  a3 {[%clk 0:01:20]} 42. g4+ {[%clk 0:00:22]}  Kg6 {[%clk 0:01:17]} 0-1


[Site "https://www.chess.com"]

[Event "Titled Tuesday Blitz March 15 Late 2022"]
[White "Peatman, Carter"]
[Black "Kadam, Om Manish"]
[WhiteFideId "2096480"]
[BlackFideId "45076294"]
[WhiteElo "2432"]
[BlackElo "1729"]
[Result "1-0"]
[Round "05"]
[TimeControl "180+1"]
[Date "2022.03.16"]
[WhiteClock "0:02:06"]
[BlackClock "0:00:01"]

1. d4 {[%clk 0:02:59]}  Nf6 {[%clk 0:01:04]} 2. Bf4 {[%clk 0:02:59]}  d5 {[%clk 0:01:04]} 3. e3 {[%clk 0:03:00]}  e6 {[%clk 0:01:03]} 4. c3 {[%clk 0:02:59]}  Be7 {[%clk 0:01:04]} 5. Bd3 {[%clk 0:02:59]}  c5 {[%clk 0:01:03]} 6. Nd2 {[%clk 0:02:59]}  Nc6 {[%clk 0:01:03]} 7. Ngf3 {[%clk 0:03:00]}  b6 {[%clk 0:01:04]} 8. Ne5 {[%clk 0:02:59]}  Bb7 {[%clk 0:01:04]} 9. Bb5 {[%clk 0:02:59]}  Rc8 {[%clk 0:00:28]} 10. Qa4 {[%clk 0:02:59]}  Qc7 {[%clk 0:00:28]} 11. Nxc6 {[%clk 0:02:58]}  Qxc6 {[%clk 0:00:10]} 12. Bxc6+ {[%clk 0:02:57]}  Bxc6 {[%clk 0:00:11]} 13. Qxa7 {[%clk 0:02:55]}  Nd7 {[%clk 0:00:12]} 14. dxc5 {[%clk 0:02:41]}  Bxc5 {[%clk 0:00:10]} 15. b4 {[%clk 0:02:38]}  Be7 {[%clk 0:00:10]} 16. Qa3 {[%clk 0:02:33]}  e5 {[%clk 0:00:10]} 17. Bg3 {[%clk 0:02:34]}  h5 {[%clk 0:00:10]} 18. h4 {[%clk 0:02:33]}  f5 {[%clk 0:00:09]} 19. Nf3 {[%clk 0:02:30]}  Bf6 {[%clk 0:00:05]} 20. O-O {[%clk 0:02:27]}  O-O {[%clk 0:00:05]} 21. Rab1 {[%clk 0:02:27]}  Bb7 {[%clk 0:00:05]} 22. Nd2 {[%clk 0:02:24]}  f4 {[%clk 0:00:03]} 23. exf4 {[%clk 0:02:25]}  exf4 {[%clk 0:00:04]} 24. Bxf4 {[%clk 0:02:23]}  Bxc3 {[%clk 0:00:05]} 25. Bg5 {[%clk 0:02:22]}  Ne5 {[%clk 0:00:04]} 26. Rbc1 {[%clk 0:02:15]}  d4 {[%clk 0:00:04]} 27. Nb1 {[%clk 0:02:10]}  Nd3 {[%clk 0:00:01]} 28. Nxc3 {[%clk 0:02:06]} 1-0


[Site "https://www.chess.com"]

[Event "Titled Tuesday Blitz March 15 Late 2022"]
[White "Piliczewski, Bogusz"]
[Black "Farmani Anosheh, Armin"]
[WhiteFideId "1104144"]
[BlackFideId "24613240"]
[WhiteElo "1896"]
[BlackElo "2289"]
[Result "0-1"]
[Round "05"]
[TimeControl "180+1"]
[Date "2022.03.16"]
[WhiteClock "0:00:47"]
[BlackClock "0:00:41"]

1. d4 {[%clk 0:03:00]}  Nf6 {[%clk 0:02:59]} 2. Nf3 {[%clk 0:03:00]}  d5 {[%clk 0:02:58]} 3. Bf4 {[%clk 0:03:00]}  c5 {[%clk 0:02:58]} 4. c3 {[%clk 0:02:59]}  Nc6 {[%clk 0:02:52]} 5. e3 {[%clk 0:02:58]}  Qb6 {[%clk 0:02:50]} 6. Qb3 {[%clk 0:02:57]}  c4 {[%clk 0:02:50]} 7. Qxb6 {[%clk 0:02:57]}  axb6 {[%clk 0:02:51]} 8. h3 {[%clk 0:02:56]}  b5 {[%clk 0:02:47]} 9. a3 {[%clk 0:02:56]}  b4 {[%clk 0:02:47]} 10. Be2 {[%clk 0:02:46]}  Bf5 {[%clk 0:02:40]} 11. cxb4 {[%clk 0:02:39]}  Nxb4 {[%clk 0:02:38]} 12. O-O {[%clk 0:02:37]}  Bxb1 {[%clk 0:01:47]} 13. Raxb1 {[%clk 0:02:36]}  Nc6 {[%clk 0:01:47]} 14. Ne5 {[%clk 0:02:24]}  Nd7 {[%clk 0:01:31]} 15. Nxd7 {[%clk 0:02:19]}  Kxd7 {[%clk 0:01:32]} 16. Bf3 {[%clk 0:02:13]}  e6 {[%clk 0:01:31]} 17. Rfc1 {[%clk 0:02:04]}  Bd6 {[%clk 0:01:28]} 18. Bxd6 {[%clk 0:02:03]}  Kxd6 {[%clk 0:01:28]} 19. Rc3 {[%clk 0:01:59]}  b5 {[%clk 0:01:26]} 20. b4 {[%clk 0:01:48]}  Ra7 {[%clk 0:01:11]} 21. Rd1 {[%clk 0:01:26]}  Rha8 {[%clk 0:01:09]} 22. e4 {[%clk 0:01:26]}  Rxa3 {[%clk 0:01:09]} 23. Rxa3 {[%clk 0:01:22]}  Rxa3 {[%clk 0:01:10]} 24. exd5 {[%clk 0:01:17]}  exd5 {[%clk 0:01:11]} 25. Rb1 {[%clk 0:01:05]}  Nxd4 {[%clk 0:00:55]} 26. Bd1 {[%clk 0:01:04]}  c3 {[%clk 0:00:50]} 27. Rc1 {[%clk 0:01:02]}  c2 {[%clk 0:00:47]} 28. Bf3 {[%clk 0:00:49]}  Rb3 {[%clk 0:00:41]} 29. Kh2 {[%clk 0:00:47]}  Rb1 {[%clk 0:00:41]} 0-1


[Site "https://www.chess.com"]